bitfinex/quotes_BTCUSD_20250709
["timestamp","ask_amount","ask_price","bid_price","bid_amount"]
[1752091442627,0.18628057,111820.0,111810.0,1.02153089]
[1752091443475,0.19522279,111820.0,111810.0,1.02153089]
[1752091443889,0.18628057,111820.0,111810.0,1.02153089]
[1752091444143,0.21482089,111830.0,111820.0,0.39674436]
[1752091444357,0.49942122,111830.0,111820.0,0.74268734]
[1752091444574,0.4904794,111830.0,111820.0,0.75162972]
[1752091444779,0.39900231,111830.0,111820.0,0.75486972]
[1752091444985,0.4724864,111830.0,111820.0,0.72480186]
[1752091445199,0.46354474,111830.0,111820.0,0.60205832]
[1752091445404,0.46354474,111830.0,111820.0,0.60305832]
[1752091445612,0.46354474,111830.0,111820.0,0.52580186]
[1752091446084,0.46354474,111830.0,111820.0,0.52880186]
[1752091446506,0.46354474,111830.0,111820.0,0.21376791]
[1752091446710,0.46354474,111830.0,111820.0,0.52880186]
[1752091446914,0.45460284,111830.0,111820.0,0.60607078]
[1752091447553,0.46354474,111830.0,111820.0,0.60607078]
[1752091448230,0.46342474,111830.0,111820.0,0.4272119]
[1752091448453,0.45448284,111830.0,111820.0,0.52880186]
[1752091449079,0.45448284,111830.0,111820.0,0.34994298]
[1752091449462,0.45448284,111830.0,111820.0,0.11228279]
[1752091449813,0.5094407,111830.0,111810.0,0.10299594]
[1752091449815,0.17889087,111820.0,111750.0,0.1]
[1752091450033,0.24686743,111750.0,111740.0,0.00960819]
[1752091450253,0.24686743,111750.0,111730.0,0.0053575]
[1752091450254,0.18793611,111740.0,111730.0,0.0053575]
[1752091450462,0.19588521,111740.0,111730.0,0.0053575]
[1752091450896,0.18796975,111720.0,111710.0,0.00072]
[1752091451117,0.45440668,111720.0,111710.0,0.00072]
[1752091451538,0.45440668,111720.0,111710.0,0.00119024]
[1752091451978,0.27940668,111720.0,111710.0,0.00119024]
[1752091452418,0.27940668,111720.0,111710.0,0.00219024]
[1752091452632,0.45432668,111720.0,111710.0,0.00219024]
[1752091453479,0.45432668,111720.0,111710.0,0.00223024]
[1752091453716,0.45432668,111720.0,111710.0,0.03423024]
[1752091454136,0.45432668,111720.0,111710.0,0.03427024]
[1752091454370,0.45432668,111720.0,111710.0,0.03431024]
[1752091454739,0.45432668,111720.0,111710.0,0.03435024]
[1752091455170,0.27940668,111720.0,111710.0,0.00239024]
[1752091455397,0.27940668,111720.0,111710.0,0.00243024]
[1752091455607,0.27940668,111720.0,111710.0,0.00247024]
[1752091455818,0.27940668,111720.0,111710.0,0.00251024]
[1752091456021,0.27940668,111720.0,111710.0,0.00351024]
[1752091456226,0.27940668,111720.0,111710.0,0.00355024]
[1752091456432,0.45424668,111720.0,111710.0,0.00355024]
[1752091457277,0.45324668,111720.0,111710.0,0.00355024]
[1752091457745,0.28731738,111720.0,111710.0,0.58718302]
[1752091457986,0.46215738,111720.0,111710.0,0.58718302]
[1752091458227,0.46211738,111720.0,111710.0,0.03635024]
[1752091459691,0.46211738,111720.0,111710.0,0.00355024]
[1752091460098,0.28731738,111720.0,111710.0,0.22443699]
[1752091460390,0.2704559,111720.0,111710.0,0.03645024]
[1752091460590,0.4452159,111720.0,111710.0,0.03645024]
[1752091460800,0.2704559,111720.0,111710.0,0.03645024]
[1752091461000,0.45412668,111720.0,111710.0,0.03645024]
[1752091461836,0.27940668,111720.0,111710.0,0.2244369]
[1752091462051,0.45408668,111720.0,111710.0,0.03645024]
[1752091462686,0.27940668,111720.0,111710.0,0.22443699]
[1752091462889,0.45408668,111720.0,111710.0,0.03645024]
[1752091463103,0.45404668,111720.0,111710.0,0.00355024]
[1752091463524,0.59450121,111720.0,111710.0,1e-08]
[1752091463742,0.94837104,111720.0,111710.0,1e-08]
[1752091463976,0.78517704,111700.0,111690.0,0.0004]
[1752091464193,0.78517704,111700.0,111670.0,0.0004]
[1752091464194,0.18803708,111680.0,111670.0,0.0004]
[1752091464409,1.01944764,111680.0,111670.0,1e-08]
[1752091464625,0.18807076,111660.0,111650.0,0.0004]
[1752091464838,0.62866769,111660.0,111650.0,0.0004]
[1752091465068,0.62866769,111660.0,111650.0,0.000869]
[1752091465506,0.64320854,111660.0,111650.0,0.000869]
[1752091465727,0.27950769,111660.0,111650.0,0.033869]
[1752091465956,0.17906706,111690.0,111670.0,0.033]
[1752091466174,0.10934307,111690.0,111680.0,0.21208309]
[1752091466411,0.46297053,111690.0,111680.0,0.033]
[1752091466628,0.01791046,111660.0,111650.0,0.37293883]
[1752091466887,0.00895471,111670.0,111660.0,0.21907076]
[1752091467089,0.19242902,111670.0,111660.0,0.79676951]
[1752091467300,0.48087458,111670.0,111660.0,0.81035905]
[1752091467517,0.47192019,111670.0,111660.0,0.0625]
[1752091467733,0.47192019,111670.0,111660.0,0.07145575]
[1752091467953,0.46296572,111670.0,111660.0,0.07145575]
[1752091468180,0.46396572,111670.0,111660.0,0.25057084]
[1752091468395,0.46396572,111670.0,111660.0,0.0575]
[1752091468602,0.45501101,111670.0,111660.0,0.0575]
[1752091468814,0.45501101,111670.0,111660.0,0.60837278]
[1752091469035,0.09343693,111670.0,111660.0,0.81435448]
[1752091469255,0.29478074,111670.0,111660.0,0.27247689]
[1752091469489,0.4649254,111670.0,111660.0,0.03158]
[1752091469698,0.4638854,111670.0,111660.0,0.03162]
[1752091469922,0.4628854,111670.0,111660.0,0.03166]
[1752091470141,0.4618854,111670.0,111660.0,0.03166]
[1752091470362,0.4618854,111670.0,111660.0,0.0317]
[1752091470568,0.4618854,111670.0,111660.0,0.03274]
[1752091470796,0.4618854,111670.0,111660.0,0.03278]
[1752091471009,0.4618854,111670.0,111660.0,0.79264424]
[1752091471010,0.17444,111670.0,111660.0,0.79264424]
[1752091471213,0.19234886,111670.0,111660.0,0.79264424]
[1752091471429,0.19234886,111670.0,111660.0,0.82484424]
[1752091471715,0.17905102,111700.0,111680.0,0.22749091]
[1752091471994,0.46281045,111690.0,111680.0,0.76041587]
[1752091472222,0.11829554,111690.0,111680.0,0.81867792]
[1752091472446,0.21017276,111690.0,111680.0,0.0617]
[1752091472674,0.46277061,111690.0,111680.0,0.0303]
[1752091473153,0.46577061,111690.0,111680.0,0.0303]
[1752091473405,0.46277061,111690.0,111680.0,0.0303]
[1752091473629,0.19700847,111670.0,111660.0,1.1588348]
[1752091473847,0.37132847,111670.0,111660.0,1.1588348]
[1752091474064,0.19222934,111670.0,111660.0,1.17674526]
[1752091474311,0.4627254,111670.0,111660.0,0.03062]
[1752091475030,0.4617254,111670.0,111660.0,0.03062]
[1752091475255,0.4617254,111670.0,111660.0,0.03262]
[1752091475706,0.4617254,111670.0,111660.0,0.00232]
[1752091476147,0.4617254,111670.0,111660.0,0.00236]
[1752091476353,0.4617254,111670.0,111660.0,0.35340328]
[1752091476555,0.4617254,111670.0,111660.0,0.38370328]
[1752091476763,0.4617254,111670.0,111660.0,0.0327]
[1752091476972,0.4617254,111670.0,111660.0,0.03274]
[1752091477193,0.4617254,111670.0,111660.0,0.03452341]
[1752091477607,0.4617254,111670.0,111660.0,0.03456341]
[1752091478649,0.4617254,111670.0,111660.0,0.03256341]
[1752091479077,0.4617254,111670.0,111660.0,0.03056341]
[1752091479512,0.4617254,111670.0,111660.0,1.12189267]
[1752091479513,0.0179091,111670.0,111660.0,1.12189267]
[1752091479735,0.20989852,111670.0,111660.0,1.16214826]
[1752091479954,0.38899765,111670.0,111660.0,1.17110361]
[1752091480165,0.20989836,111670.0,111660.0,1.1800588]
[1752091480382,0.20094357,111670.0,111660.0,1.1800588]
[1752091480615,0.01790822,111680.0,111670.0,0.22730847]
[1752091480841,0.47146207,111680.0,111670.0,0.80408637]
[1752091481080,0.46250824,111680.0,111670.0,0.813041]
[1752091481288,0.46250824,111680.0,111670.0,0.80408637]
[1752091481707,0.274471,111680.0,111670.0,0.80408637]
[1752091481923,0.47146135,111680.0,111670.0,0.80408637]
[1752091482111,0.46150808,111680.0,111670.0,0.82199603]
[1752091482357,0.46150808,111680.0,111670.0,0.81889603]
[1752091482755,0.46150808,111680.0,111670.0,0.8099414]
[1752091483241,0.45255417,111680.0,111670.0,0.0303]
[1752091483478,0.45343417,111680.0,111670.0,0.0303]
[1752091483710,0.18805392,111670.0,111660.0,0.54974912]
[1752091483922,0.28844556,111670.0,111660.0,1.10108157]
[1752091484128,0.18287447,111670.0,111660.0,1.17120361]
[1752091484335,0.3798831,111670.0,111660.0,0.61987132]
[1752091484566,0.45341085,111670.0,111660.0,0.37063395]
[1752091484773,0.45241085,111670.0,111660.0,0.37063395]
[1752091485399,0.45241085,111670.0,111660.0,0.54974912]
[1752091485582,0.45333085,111670.0,111660.0,0.5676603]
[1752091485844,0.45333085,111670.0,111660.0,1.12794818]
[1752091486074,0.09143693,111670.0,111660.0,1.14000337]
[1752091486307,0.10934579,111670.0,111660.0,1.17120337]
[1752091486530,0.29210042,111670.0,111660.0,1.17120337]
[1752091486745,0.10934571,111670.0,111660.0,1.17120337]
[1752091486961,0.47119955,111670.0,111660.0,0.61677092]
[1752091487162,0.31530937,111670.0,111660.0,1.16810353]
[1752091487343,0.48910937,111670.0,111660.0,1.16810353]
[1752091487627,0.48015506,111670.0,111660.0,1.1770588]
[1752091487869,0.48011506,111670.0,111660.0,1.1770588]
[1752091488077,0.46220588,111670.0,111660.0,0.37063395]
[1752091488310,0.45325101,111670.0,111660.0,0.37063395]
[1752091488488,0.45725101,111670.0,111660.0,0.37063395]
[1752091488962,0.45825101,111670.0,111660.0,0.37063395]
[1752091489177,0.45721101,111670.0,111660.0,0.37063395]
[1752091489364,0.45621101,111670.0,111660.0,0.54974912]
[1752091489617,0.45621101,111670.0,111660.0,0.37063395]
[1752091490033,0.45613101,111670.0,111660.0,1.11899291]
[1752091490454,0.45613101,111670.0,111660.0,1.10108157]
[1752091490667,0.45613101,111670.0,111660.0,1.11003724]
[1752091490848,0.45613101,111670.0,111660.0,0.37063395]
[1752091491082,0.45609101,111670.0,111660.0,0.9219664]
[1752091491293,0.45609101,111670.0,111660.0,1.11899299]
[1752091491503,0.44713606,111670.0,111660.0,0.54974912]
[1752091491715,0.44713606,111670.0,111660.0,1.11899299]
[1752091491921,0.44713606,111670.0,111660.0,0.56766054]
[1752091492132,0.44713606,111670.0,111660.0,0.93092215]
[1752091492342,0.44713606,111670.0,111660.0,0.9219664]
[1752091492521,0.44713606,111670.0,111660.0,0.3795897]
[1752091492755,0.44713606,111670.0,111660.0,0.55870487]
[1752091493385,0.44713606,111670.0,111660.0,0.37063395]
[1752091493817,0.1033914,111670.0,111660.0,1.12794786]
[1752091493985,0.29378034,111670.0,111660.0,1.16294786]
[1752091494500,0.30269505,111670.0,111660.0,1.16294786]
[1752091494948,0.31164992,111670.0,111660.0,1.16294786]
[1752091495141,0.47284067,111670.0,111660.0,0.56766038]
[1752091495370,0.47284067,111670.0,111660.0,1.11899283]
[1752091495602,0.46388588,111670.0,111660.0,0.37063395]
[1752091496079,0.46388588,111670.0,111660.0,0.54974912]
[1752091496326,0.45493101,111670.0,111660.0,0.36701195]
[1752091496570,0.11134579,111670.0,111660.0,1.12742586]
[1752091496800,0.47275955,111670.0,111660.0,0.54612712]
[1752091497028,0.47276019,111670.0,111660.0,0.56403838]
[1752091497277,0.47276019,111670.0,111660.0,0.57299381]
[1752091497531,0.47276019,111670.0,111660.0,1.13328153]
[1752091497753,0.29366106,111670.0,111660.0,1.13328153]
[1752091497999,0.47276019,111670.0,111660.0,1.14223672]
[1752091498204,0.2936609,111670.0,111660.0,1.14223672]
[1752091498408,0.30261577,111670.0,111660.0,1.14223672]
[1752091498614,0.4817149,111670.0,111660.0,1.13328153]
[1752091498839,0.47276043,111670.0,111660.0,1.12432626]
[1752091499047,0.47264043,111670.0,111660.0,0.93292323]
[1752091499265,0.48159538,111670.0,111660.0,0.91292331]
[1752091499678,0.48059538,111670.0,111660.0,0.91292331]
[1752091500211,0.46268588,111670.0,111660.0,0.54403838]
[1752091500421,0.29254074,111670.0,111660.0,0.94392307]
[1752091500624,0.29246074,111670.0,111660.0,0.94702307]
[1752091500825,0.29246066,111670.0,111660.0,0.94702307]
[1752091501029,0.11034595,111670.0,111660.0,0.94702307]
[1752091501237,0.004,111670.0,111660.0,0.94702307]
[1752091501485,0.215,111700.0,111690.0,0.26742615]
[1752091501697,0.215,111700.0,111690.0,0.9584003]
[1752091501900,0.22817862,111740.0,111730.0,0.21845301]
[1752091502119,0.21923,111740.0,111730.0,0.97088596]
[1752091502325,0.39231,111740.0,111730.0,0.97088596]
[1752091502541,0.39231,111740.0,111730.0,1.17088596]
[1752091503393,0.21923,111740.0,111730.0,0.97088596]
[1752091503597,0.39227,111740.0,111730.0,0.97088596]
[1752091504029,0.50156489,111740.0,111730.0,0.54950295]
[1752091504247,0.68950124,111740.0,111730.0,0.3705]
[1752091504449,0.017901,111720.0,111710.0,0.60043202]
[1752091504673,0.47026816,111720.0,111710.0,0.13060417]
[1752091504891,0.46131754,111720.0,111710.0,0.13060417]
[1752091505118,0.46127754,111720.0,111710.0,0.10010417]
[1752091505326,0.46127754,111720.0,111710.0,0.00014079]
[1752091505550,0.86925791,111720.0,111710.0,0.00014079]
[1752091505762,1.05716524,111720.0,111710.0,0.00014079]
[1752091506402,0.19700863,111670.0,111660.0,0.0305]
[1752091506617,0.46128556,111670.0,111660.0,0.13046338]
[1752091506829,0.46128556,111670.0,111660.0,0.0305]
[1752091507472,0.44337606,111670.0,111650.0,0.19748357]
[1752091507726,0.28846296,111660.0,111650.0,0.22172734]
[1752091507936,0.27950769,111660.0,111650.0,0.21277086]
[1752091508147,0.27950769,111660.0,111650.0,0.22172742]
[1752091508358,0.09143693,111660.0,111650.0,0.35273844]
[1752091508555,0.11830298,111660.0,111650.0,0.35273852]
[1752091508767,0.11830298,111660.0,111650.0,0.91258136]
[1752091508979,0.11830298,111660.0,111650.0,0.36169451]
[1752091509190,0.12725873,111660.0,111650.0,0.13778232]
[1752091509401,0.28846344,111660.0,111650.0,0.13778232]
[1752091510128,0.27950785,111660.0,111650.0,0.13778232]
[1752091510340,0.10039244,111660.0,111650.0,0.32787009]
[1752091510546,0.28198723,111660.0,111650.0,0.93947548]
[1752091510755,0.47901334,111660.0,111650.0,0.17363232]
[1752091510968,0.46110304,111660.0,111650.0,0.13978232]
[1752091511395,0.46110304,111660.0,111650.0,0.10658232]
[1752091511602,0.46110304,111660.0,111650.0,0.10858232]
[1752091512234,0.46110304,111660.0,111650.0,0.14188232]
[1752091512456,0.46110304,111660.0,111650.0,0.3478828]
[1752091512457,0.10934787,111660.0,111650.0,0.3478828]
[1752091512655,0.29090354,111660.0,111650.0,0.36579502]
[1752091512856,0.29090354,111660.0,111650.0,0.9166813]
[1752091513063,0.11830274,111660.0,111650.0,0.94287531]
[1752091513272,0.27295196,111660.0,111650.0,1.2918313]
[1752091513484,0.28190707,111660.0,111650.0,1.2886813]
[1752091513688,0.29086234,111660.0,111650.0,1.18768898]
[1752091513896,0.28190707,111660.0,111650.0,1.18768898]
[1752091514326,0.00014072,111670.0,111660.0,0.20598146]
[1752091514545,0.26409765,111670.0,111660.0,0.91118226]
[1752091514760,0.27305204,111670.0,111660.0,0.90803226]
[1752091514987,0.26405765,111670.0,111660.0,0.93489823]
[1752091515171,0.47002043,111670.0,111660.0,0.32514549]
[1752091515382,0.26405765,111670.0,111660.0,0.23928194]
[1752091515605,0.26305765,111670.0,111660.0,0.79912398]
[1752091516027,0.22391359,111680.0,111670.0,0.20596302]
[1752091516263,0.50573802,111680.0,111670.0,0.79014987]
[1752091516484,0.33325802,111680.0,111670.0,0.79014987]
[1752091516711,0.30639693,111680.0,111670.0,0.82529987]
[1752091516920,0.47879693,111680.0,111670.0,1.16529987]
[1752091517133,0.47979693,111680.0,111670.0,1.16529987]
[1752091517576,0.001,111680.0,111670.0,1.16529987]
[1752091517817,0.1734,111680.0,111670.0,1.16529987]
[1752091518029,0.001,111680.0,111670.0,1.16529987]
[1752091518227,0.18231351,111680.0,111670.0,1.16529987]
[1752091518445,0.17236,111680.0,111670.0,1.16529987]
[1752091518650,0.03581196,111690.0,111680.0,0.23724498]
[1752091518864,0.29956889,111690.0,111680.0,0.24619873]
[1752091519104,0.46968332,111690.0,111680.0,0.22829123]
[1752091519310,0.29061618,111690.0,111680.0,0.23724498]
[1752091519515,0.47863659,111690.0,111680.0,0.22829123]
[1752091519935,0.47068372,111690.0,111680.0,0.22829123]
[1752091520413,0.45277734,111690.0,111680.0,0.0313]
[1752091520625,0.28245734,111690.0,111680.0,0.22829131]
[1752091520853,0.003,111690.0,111680.0,1.32283558]
[1752091521065,0.003,111690.0,111680.0,2.25739671]
[1752091521275,0.1752,111690.0,111680.0,1.10459711]
[1752091521517,0.1752,111690.0,111680.0,1.42279896]
[1752091521731,0.19210566,111690.0,111680.0,1.41964896]
[1752091521951,0.21001196,111690.0,111680.0,1.41964904]
[1752091522211,0.46361021,111690.0,111680.0,0.13126338]
[1752091522421,0.45465718,111690.0,111680.0,0.14021753]
[1752091522654,0.09443693,111690.0,111680.0,0.89704896]
[1752091522915,0.001,111690.0,111680.0,1.42239896]
[1752091523131,0.17312,111690.0,111680.0,1.52611621]
[1752091523356,0.006,111690.0,111680.0,1.52611621]
[1752091523773,0.17808,111690.0,111680.0,1.52611621]
[1752091525234,0.17808,111690.0,111680.0,1.52512604]
[1752091525706,0.178,111690.0,111680.0,1.52512604]
[1752091526912,0.26523851,111690.0,111680.0,1.52805636]
[1752091527089,0.09323851,111690.0,111680.0,1.52805636]
[1752091527289,0.17368158,111690.0,111680.0,1.53120636]
[1752091527694,0.00180158,111690.0,111680.0,2.08209321]
[1752091527894,0.18795687,111730.0,111720.0,0.17901897]
[1752091528100,0.46927074,111730.0,111720.0,0.20300093]
[1752091528313,0.29921729,111730.0,111720.0,0.22090209]
[1752091528518,0.29921729,111730.0,111720.0,0.26065255]
[1752091528773,0.13632727,111730.0,111720.0,0.33841062]
[1752091528989,0.30812727,111730.0,111720.0,0.68900576]
[1752091529198,0.11942771,111730.0,111720.0,0.68900576]
[1752091529400,0.12837777,111730.0,111720.0,0.68900576]
[1752091529611,0.30013777,111730.0,111720.0,0.68900576]
[1752091530057,0.47914072,111730.0,111720.0,0.67110492]
[1752091530533,0.47914072,111730.0,111720.0,0.32050978]
[1752091530758,0.47019098,111730.0,111720.0,0.23380101]
[1752091530957,0.46124116,111730.0,111720.0,0.22485023]
[1752091531313,0.46124116,111730.0,111720.0,0.19405023]
[1752091531546,0.28848116,111730.0,111720.0,0.00608032]
[1752091531772,0.45121118,111730.0,111720.0,0.00708032]
[1752091532448,0.46575203,111730.0,111720.0,0.00708032]
[1752091533177,0.49825203,111730.0,111720.0,0.00708032]
[1752091533403,0.17906706,111690.0,111680.0,0.30764837]
[1752091533622,0.28090243,111690.0,111680.0,0.42551917]
[1752091533830,0.2898557,111690.0,111680.0,0.35671437]
[1752091534041,0.28090243,111690.0,111680.0,0.35671381]
[1752091534269,0.28090243,111690.0,111680.0,0.43447244]
[1752091534503,0.27194956,111690.0,111680.0,0.43447244]
[1752091534712,0.27194956,111690.0,111680.0,0.77447244]
[1752091534924,0.26299693,111690.0,111680.0,1.32521512]
[1752091535133,0.29880889,111690.0,111680.0,0.76551885]
[1752091535343,0.27194956,111690.0,111680.0,0.77447244]
[1752091535548,0.2898553,111690.0,111680.0,0.77357244]
[1752091535771,0.28090235,111690.0,111680.0,0.77357244]
[1752091535984,0.28090227,111690.0,111680.0,1.32431512]
[1752091536186,0.26299693,111690.0,111680.0,1.32431512]
[1752091536393,0.26299693,111690.0,111680.0,1.35681512]
[1752091537653,0.26299693,111690.0,111680.0,0.80922244]
[1752091537862,0.28090251,111690.0,111680.0,0.80922244]
[1752091538089,0.28290243,111690.0,111680.0,1.35996512]
[1752091538319,0.47092244,111690.0,111680.0,0.38880369]
[1752091538531,0.47092292,111690.0,111680.0,0.39775776]
[1752091538733,0.46197013,111690.0,111680.0,0.3888051]
[1752091538945,0.46197013,111690.0,111680.0,0.41566699]
[1752091539365,0.28290307,111690.0,111680.0,0.43357433]
[1752091539573,0.27394956,111690.0,111680.0,0.98431701]
[1752091539781,0.47987571,111690.0,111680.0,0.41566699]
[1752091539998,0.29185538,111690.0,111680.0,0.97536326]
[1752091540408,0.30080857,111690.0,111680.0,0.97536326]
[1752091540627,0.29185538,111690.0,111680.0,0.97536326]
[1752091540829,0.29185538,111690.0,111680.0,0.42462058]
[1752091541041,0.29185538,111690.0,111680.0,0.97536326]
[1752091541462,0.27394956,111690.0,111680.0,0.97536326]
[1752091541697,0.27394964,111690.0,111680.0,0.97536326]
[1752091541885,0.28290243,111690.0,111680.0,0.97536326]
[1752091542088,0.27394964,111690.0,111680.0,0.97536326]
[1752091542302,0.29185546,111690.0,111680.0,0.97536326]
[1752091542516,0.28290243,111690.0,111680.0,0.97536326]
[1752091542728,0.27394964,111690.0,111680.0,0.46076058]
[1752091542928,0.29185578,111690.0,111680.0,0.97536326]
[1752091543140,0.2918557,111690.0,111680.0,0.97536326]
[1752091543348,0.29661007,111690.0,111680.0,0.97536326]
[1752091543764,0.27870377,111690.0,111680.0,0.97536326]
[1752091544818,0.28765696,111690.0,111680.0,0.97536326]
[1752091545255,0.29661023,111690.0,111680.0,0.98145929]
[1752091545481,0.47567729,111690.0,111680.0,0.41280919]
[1752091545664,0.28765696,111690.0,111680.0,0.43071677]
[1752091545899,0.28765696,111690.0,111680.0,0.43967036]
[1752091546108,0.28765696,111690.0,111680.0,0.99041304]
[1752091546765,0.26975082,111690.0,111680.0,0.99041304]
[1752091547180,0.09343693,111690.0,111680.0,0.99041304]
[1752091547396,0.17288,111690.0,111680.0,1.38942279]
[1752091547614,0.22391102,111710.0,111700.0,0.23610771]
[1752091547827,0.50427174,111710.0,111700.0,0.87086525]
[1752091548046,0.30653812,111710.0,111700.0,0.87086525]
[1752091548290,0.47737812,111710.0,111700.0,0.87086525]
[1752091548707,0.31548922,111710.0,111700.0,0.90390525]
[1752091548918,0.21510119,111710.0,111700.0,0.92987796]
[1752091549125,0.41275497,111710.0,111700.0,0.37913528]
[1752091549351,0.40380347,111710.0,111700.0,0.92987796]
[1752091549585,0.21510119,111710.0,111700.0,0.92991796]
[1752091549789,0.38590119,111710.0,111700.0,0.92991796]
[1752091549998,0.38590119,111710.0,111700.0,0.93291796]
[1752091550205,0.21510119,111710.0,111700.0,0.93291796]
[1752091550418,0.38586119,111710.0,111700.0,0.93924961]
[1752091550633,0.38586119,111710.0,111700.0,0.94324961]
[1752091550852,0.38582119,111710.0,111700.0,0.94324961]
[1752091551066,0.38582119,111710.0,111700.0,0.74311103]
[1752091551702,0.17082119,111710.0,111700.0,0.74311103]
[1752091552386,0.17078119,111710.0,111700.0,0.74511103]
[1752091553228,0.17078119,111710.0,111700.0,0.74510797]
[1752091554235,0.04441064,111750.0,111740.0,0.19688521]
[1752091554394,0.33814501,111750.0,111740.0,0.5446339]
[1752091554599,0.33814501,111750.0,111740.0,0.00609369]
[1752091554600,0.67868802,111750.0,111740.0,0.00609369]
[1752091555181,0.72452887,111750.0,111740.0,0.00609369]
[1752091555395,0.72552887,111750.0,111740.0,0.00609369]
[1752091555609,1.08693297,111750.0,111740.0,0.00609369]
[1752091555820,0.19692029,111720.0,111710.0,0.07783933]
[1752091556048,0.18798666,111710.0,111700.0,0.57317846]
[1752091556267,0.27942359,111710.0,111700.0,0.18184271]
[1752091556430,0.27942359,111710.0,111700.0,0.08187933]
[1752091556635,0.27942359,111710.0,111700.0,0.25693035]
[1752091556847,0.10933969,111710.0,111700.0,0.59690404]
[1752091557006,0.29732644,111710.0,111700.0,0.22839588]
[1752091557231,0.28837518,111710.0,111700.0,4e-05]
[1752091557439,0.28837518,111710.0,111700.0,0.18804341]
[1752091557650,0.28937518,111710.0,111700.0,0.19699564]
[1752091557850,0.11033961,111710.0,111700.0,0.58795173]
[1752091558226,0.27170811,111710.0,111700.0,0.66877106]
[1752091558452,0.29856262,111710.0,111700.0,0.63897445]
[1752091558676,0.46864644,111710.0,111700.0,0.30627513]
[1752091558881,0.45969518,111710.0,111700.0,0.29732282]
[1752091559091,0.45074368,111710.0,111700.0,0.64792692]
[1752091559300,0.44179193,111710.0,111700.0,0.45992343]
[1752091559510,0.44179193,111710.0,111700.0,0.07791933]
[1752091559952,0.44079193,111710.0,111700.0,8e-05]
[1752091560162,0.44079193,111710.0,111700.0,0.00308]
[1752091560374,0.44079193,111710.0,111700.0,0.08091933]
[1752091560582,0.44079193,111710.0,111700.0,0.08095933]
[1752091560831,0.44079193,111710.0,111700.0,0.08299933]
[1752091561053,0.54254426,111700.0,111690.0,1e-08]
[1752091561273,0.54254426,111700.0,111670.0,1e-08]
[1752091561274,0.21153168,111680.0,111670.0,1e-08]
[1752091561486,0.17909913,111670.0,111660.0,0.0006]
[1752091561701,0.2939917,111670.0,111660.0,0.001069]
[1752091561913,0.6766958,111670.0,111660.0,0.001069]
[1752091562128,0.3260917,111670.0,111660.0,0.001069]
[1752091562786,0.4641117,111670.0,111660.0,0.001069]
[1752091563422,0.44957085,111670.0,111660.0,0.001069]
[1752091563664,0.45057085,111670.0,111660.0,0.001069]
[1752091563881,0.45057085,111670.0,111660.0,0.001109]
[1752091564278,0.45057085,111670.0,111660.0,0.001149]
[1752091564515,0.45057085,111670.0,111660.0,0.001189]
[1752091565009,0.28045085,111670.0,111660.0,0.001229]
[1752091565228,0.28045085,111670.0,111660.0,0.57318402]
[1752091565438,0.45940556,111670.0,111660.0,0.23153559]
[1752091565651,0.45045085,111670.0,111660.0,0.04350475]
[1752091565865,0.45045085,111670.0,111660.0,0.034549]
[1752091566336,0.28045085,111670.0,111660.0,0.22261984]
[1752091566550,0.28026627,111670.0,111660.0,0.59113456]
[1752091566799,0.4593658,111670.0,111660.0,0.3851531]
[1752091567016,0.4593658,111670.0,111660.0,0.001349]
[1752091567535,0.50390665,111670.0,111660.0,0.001349]
[1752091567730,0.50386665,111670.0,111660.0,0.001349]
[1752091568815,0.50382665,111670.0,111660.0,0.001349]
[1752091569027,0.30398665,111670.0,111660.0,0.001349]
[1752091569234,0.47378665,111670.0,111660.0,0.001349]
[1752091569649,0.30398665,111670.0,111660.0,0.001349]
[1752091570161,0.4592458,111670.0,111660.0,0.001349]
[1752091570368,0.2894458,111670.0,111660.0,0.00114759]
[1752091570572,0.4592458,111670.0,111660.0,0.00114759]
[1752091570780,0.4592058,111670.0,111660.0,0.00114759]
[1752091571482,0.47374665,111670.0,111660.0,0.00114759]
[1752091571913,0.2894458,111670.0,111660.0,0.18921835]
[1752091572127,0.4591258,111670.0,111660.0,0.22161851]
[1752091572576,0.44121606,111670.0,111660.0,0.03354759]
[1752091572787,0.44121606,111670.0,111660.0,0.00114759]
[1752091573850,0.44021606,111670.0,111660.0,0.00114759]
[1752091574680,0.27053606,111670.0,111660.0,0.00114759]
[1752091574890,0.44013606,111670.0,111660.0,0.03114759]
[1752091575108,0.80528101,111670.0,111660.0,0.00114759]
[1752091575315,0.83784101,111670.0,111660.0,0.00114759]
[1752091575524,0.6991955,111670.0,111660.0,0.00114759]
[1752091575732,0.5181514,111670.0,111660.0,0.00114759]
[1752091576516,0.3485914,111670.0,111660.0,0.00114759]
[1752091576722,0.5181114,111670.0,111660.0,0.00114759]
[1752091577527,0.3485914,111670.0,111660.0,0.00114759]
[1752091577760,0.5216584,111670.0,111660.0,0.00114759]
[1752091578176,0.28866391,111670.0,111660.0,0.00114759]
[1752091578339,0.45447691,111670.0,111660.0,0.00114759]
[1752091578530,0.4853914,111670.0,111660.0,0.00114759]
[1752091578726,0.45447691,111670.0,111660.0,0.00114759]
[1752091578971,0.9654377,111670.0,111660.0,0.00114759]
[1752091579127,1.3054377,111670.0,111660.0,0.00114759]
[1752091579746,1.2946377,111670.0,111660.0,0.00114759]
[1752091580412,1.2936377,111670.0,111660.0,0.00114759]
[1752091580654,1.2956377,111670.0,111660.0,0.00114759]
[1752091581365,1.26472321,111670.0,111660.0,0.00114759]
[1752091581594,1.2956377,111670.0,111660.0,0.00114759]
[1752091582924,0.91411911,111670.0,111660.0,0.00114759]
[1752091583135,1.26472321,111670.0,111660.0,0.00114759]
[1752091583780,1.26572321,111670.0,111660.0,0.00114759]
[1752091584274,0.91511911,111670.0,111660.0,0.00114759]
[1752091584485,1.26572321,111670.0,111660.0,0.00114759]
[1752091584694,1.23462321,111670.0,111660.0,0.00114759]
[1752091584917,0.88381911,111670.0,111660.0,0.00114759]
[1752091585140,0.79627691,111670.0,111660.0,0.00114759]
[1752091585363,1.14688101,111670.0,111660.0,0.00114759]
[1752091585589,0.79627691,111670.0,111660.0,0.00114759]
[1752091585798,1.14688101,111670.0,111660.0,0.00114759]
[1752091586008,1.23831794,111670.0,111660.0,0.00114759]
[1752091586217,1.14688101,111670.0,111660.0,0.00114759]
[1752091586678,1.14672101,111670.0,111660.0,0.00114759]
[1752091587554,0.97768101,111670.0,111660.0,0.00114759]
[1752091587769,1.19668101,111670.0,111660.0,0.00114759]
[1752091587982,0.05195559,111660.0,111650.0,0.00048]
[1752091588197,0.20266215,111630.0,111620.0,0.0498845]
[1752091588417,0.46305908,111630.0,111620.0,0.0498845]
[1752091588619,0.29409908,111630.0,111620.0,0.0498845]
[1752091588833,0.48993208,111630.0,111620.0,0.0826845]
[1752091589253,0.48993208,111630.0,111620.0,0.0498845]
[1752091589492,0.49040232,111630.0,111620.0,0.0498845]
[1752091589712,0.32148232,111630.0,111620.0,0.0498845]
[1752091589924,0.49036232,111630.0,111620.0,0.0498845]
[1752091590123,0.30694147,111630.0,111620.0,0.0826845]
[1752091590331,0.44890847,111630.0,111620.0,0.0826845]